bitfinex-derivatives/quotes_ETHF0:USTF0_20250502
["timestamp","ask_amount","ask_price","bid_price","bid_amount"]
[1746198285168,1.08029,1850.7,1850.6,1.08032]
[1746198285573,2.0246,1850.8,1850.7,1.08029]
[1746198285964,0.9443,1850.8,1850.7,1.08029]
[1746198286162,2.02453,1850.8,1850.7,1.08029]
[1746198286368,0.9443,1850.8,1850.7,1.08029]
[1746198286571,2.02453,1850.8,1850.7,1.08029]
[1746198286871,0.9443,1850.8,1850.7,1.08029]
[1746198287672,2.02453,1850.8,1850.7,1.08029]
[1746198288174,0.9443,1850.8,1850.7,1.08029]
[1746198288471,3.775,1850.9,1850.8,1.08023]
[1746198288869,4.28789,1851.1,1850.7,4.28426]
[1746198289170,1.08016,1851.0,1850.9,1.08012]
[1746198289772,1.08022,1850.9,1850.8,1.08018]
[1746198291172,1.08013,1851.0,1850.9,1.08011]
[1746198291971,7.9463,1851.1,1851.0,1.08011]
[1746198291972,9.0264,1851.1,1851.0,1.08011]
[1746198293577,6.9828,1851.1,1851.0,1.08011]
[1746198293772,3.2078,1851.1,1851.0,1.08011]
[1746198294079,9.00407,1851.5,1851.2,1.08]
[1746198294266,3.2078,1851.5,1851.4,1.07988]
[1746198294467,4.28751,1851.7,1851.6,1.07976]
[1746198294779,3.2078,1851.7,1851.6,2.70286]
[1746198296565,3.2078,1851.7,1851.4,40.8]
[1746198296771,1.07982,1851.5,1851.4,1.07985]
[1746198296973,1.07988,1851.4,1851.3,1.07989]
[1746198299483,1.07989,1851.4,1851.3,1.0799]
[1746198300375,0.9422,1851.4,1851.3,1.0799]
[1746198300571,2.02208,1851.4,1851.3,1.0799]
[1746198301171,4.91478184,1851.7,1851.3,2.69976]
[1746198301372,4.91478184,1851.7,1851.6,1.07976]
[1746198301785,3.775,1851.8,1851.7,1.07971]
[1746198302178,1.07968,1851.8,1851.7,1.07965]
[1746198302380,3.00343,1851.9,1851.8,1.07965]
[1746198302580,4.62903,1851.9,1851.8,1.07965]
[1746198302779,1.6256,1851.9,1851.8,1.07965]
[1746198302981,2.70519,1851.9,1851.8,1.07965]
[1746198303281,1.07971,1851.7,1851.6,2.73062]
[1746198303577,1.07969,1851.8,1851.7,1.07969]
[1746198303775,1.07969,1851.8,1851.6,1.6509]
[1746198303776,1.07961,1851.9,1851.8,1.0796]
[1746198303981,1.07971,1851.7,1851.2,1.07995]
[1746198304182,3.2078,1851.5,1851.1,1.6509]
[1746198304389,3.2078,1851.5,1851.1,4.8587]
[1746198304585,1.07995,1851.3,1851.2,1.07995]
[1746198304888,1.07995,1851.3,1851.2,1.6851]
[1746198305388,1.08006,1851.1,1851.0,0.9404]
[1746198305592,1.08006,1851.1,1851.0,2.6255]
[1746198306095,1.08035,1850.6,1850.5,8.20022134]
[1746198306286,1.08035,1850.6,1850.5,9.86532134]
[1746198306482,1.08033,1850.7,1850.6,1.08033]
[1746198306685,2.77923,1850.7,1850.6,2.76543]
[1746198306888,5.21587,1850.8,1850.7,1.08029]
[1746198307091,3.70697,1850.8,1850.7,1.6851]
[1746198308793,1.08019,1850.9,1850.8,1.08023]
[1746198308989,1.08015,1851.0,1850.9,1.08014]
[1746198309292,3.2078,1851.2,1851.1,1.08006]
[1746198309486,1.08004,1851.2,1851.1,1.08001]
[1746198309686,3.01705,1851.5,1851.4,1.07988]
[1746198309888,1.07992,1851.4,1851.3,1.07992]
[1746198310084,1.07992,1851.4,1851.2,0.9291]
[1746198310085,4.28767,1851.5,1851.4,1.07988]
[1746198310497,3.2078,1851.5,1851.4,1.07988]
[1746198310697,3.2078,1851.5,1851.4,6.07988]
[1746198310990,1.07971,1851.7,1851.6,1.07972]
[1746198311388,4.28749,1851.8,1851.7,1.07971]
[1746198311794,1.07976,1851.6,1851.5,3.70137]
[1746198312295,5.90722,1851.6,1851.3,1.07994]
[1746198312491,5.90722,1851.6,1851.2,4.7031]
[1746198312492,2.66636,1851.5,1851.4,1.07988]
[1746198312687,1.07989,1851.4,1851.3,1.07989]
[1746198313496,1.5865,1851.5,1851.2,6.3749]
[1746198313497,2.66637,1851.5,1851.4,1.07988]
[1746198313696,1.5865,1851.5,1851.4,1.07988]
[1746198313897,3.2078,1851.6,1851.2,9.07485]
[1746198314094,3.2078,1851.6,1851.5,1.07982]
[1746198314797,3.2078,1851.8,1851.7,1.07971]
[1746198314996,4.28745,1851.8,1851.7,1.07971]
[1746198315202,3.2078,1851.8,1851.7,1.07971]
[1746198315797,1.07971,1851.7,1851.6,2.78322]
[1746198315999,1.07971,1851.7,1851.6,2.78326]
[1746198316206,1.07976,1851.6,1851.5,0.9369]
[1746198316497,1.07988,1851.4,1851.3,7.0119]
[1746198316697,1.07988,1851.4,1851.3,2.7834]
[1746198317092,3.84817,1851.5,1851.4,1.07988]
[1746198319204,1.07988,1851.4,1851.3,2.78338]
[1746198319400,2.7683,1851.5,1851.2,3.774]
[1746198319593,1.07994,1851.3,1851.2,1.07997]
[1746198319993,2.68179,1851.4,1851.3,1.07994]
[1746198320391,2.09867,1851.5,1851.4,1.07988]
[1746198320590,1.07989,1851.4,1851.3,1.07994]
[1746198320805,1.07994,1851.3,1851.2,2.79565]
[1746198321101,1.07994,1851.3,1851.0,2.70024]
[1746198321102,1.0801,1851.1,1851.0,1.08008]
[1746198321703,1.08011,1851.0,1850.9,1.08015]
[1746198321901,1.08017,1850.9,1850.8,2.79589]
[1746198322102,1.08017,1850.9,1850.8,1.08019]
[1746198322402,1.7538,1851.0,1850.9,1.08017]
[1746198322599,1.08023,1850.9,1850.8,1.08021]
[1746198322807,1.08023,1850.8,1850.7,7.09984134]
[1746198323401,4.288,1850.9,1850.8,1.08023]
[1746198323600,3.2078,1850.9,1850.8,1.08023]
[1746198323802,3.2078,1851.3,1851.2,1.08]
[1746198324005,1.08003,1851.2,1851.1,1.08001]
[1746198325102,4.28779,1851.3,1851.2,1.08]
[1746198325498,9.69437,1851.5,1851.1,1.6969]
[1746198325704,1.07999,1851.3,1851.2,1.07995]
[1746198326502,1.07992,1851.4,1851.3,1.07988]
[1746198326907,6.9948,1851.5,1850.9,3.2078]
[1746198327110,1.08006,1851.2,1851.1,1.08003]
[1746198327802,3.62682,1851.2,1850.9,1.08012]
[1746198328002,1.08016,1851.0,1850.9,1.08012]
[1746198329308,6.75286,1851.1,1850.5,3.2078]
[1746198329608,1.0803,1850.8,1850.7,1.08026]
[1746198330007,1.08025,1850.9,1850.8,1.0802]
[1746198330408,1.08029,1850.7,1850.6,2.72893]
[1746198330608,1.08031,1850.7,1850.6,1.0803]
[1746198330811,1.0803,1850.7,1850.6,1.08029]
[1746198331203,0.9911,1850.8,1850.7,1.08029]
[1746198331709,2.07133,1850.8,1850.7,1.08029]
[1746198332412,1.08029,1850.7,1850.6,1.08032]
[1746198333001,1.08035,1850.6,1850.5,1.08037]
[1746198333213,3.2078,1850.6,1850.5,1.08039]
[1746198333806,3.2078,1850.6,1850.4,1.08043]
[1746198334108,1.08043,1850.5,1850.4,1.08043]
[1746198334306,1.08046,1850.4,1850.2,1.6279]
[1746198334619,1.08046,1850.4,1850.3,1.08052]
[1746198335115,1.08052,1850.3,1850.2,2.70844]
[1746198335415,4.40802184,1850.5,1850.1,3.2078]
[1746198335601,1.08054,1850.3,1850.2,1.08055]
[1746198335806,2.05451,1850.4,1850.2,1.08054]
[1746198336007,1.08052,1850.3,1850.2,1.08054]
[1746198336219,4.1818,1850.4,1850.3,1.08052]
[1746198336709,0.974,1850.7,1850.6,1.08035]
[1746198336915,2.05429,1850.7,1850.6,1.08035]
[1746198337404,1.08035,1850.6,1850.5,1.08036]
[1746198337714,1.08043,1850.5,1850.4,1.08042]
[1746198338013,0.974,1850.7,1850.3,2.73588]
[1746198338014,1.08046,1850.4,1850.3,2.73588]
[1746198338210,1.08052,1850.3,1850.2,3.787]
[1746198338412,1.08052,1850.4,1850.3,1.0805]
[1746198338809,1.08052,1850.3,1850.2,1.7421]
[1746198339014,1.08058,1850.2,1850.1,3.2078]
[1746198339305,2.96978,1850.2,1850.1,4.28844]
[1746198339706,2.96978,1850.2,1850.1,3.2078]
[1746198339912,1.0807,1850.0,1849.9,6.03064]
[1746198340112,1.08069,1850.1,1850.0,1.08068]
[1746198340310,1.08069,1850.1,1850.0,1.08067]
[1746198340616,2.96981,1850.2,1850.1,1.08064]
[1746198340914,1.8892,1850.2,1850.1,1.08064]
[1746198341114,2.96978,1850.2,1850.1,1.08064]
[1746198341312,2.96293082,1850.2,1850.1,1.08064]
[1746198342805,1.88235082,1850.2,1850.0,1.7421]
[1746198343011,1.0807,1850.0,1849.9,4.2885]
[1746198343206,2.79896,1850.1,1850.0,1.0807]
[1746198343410,1.7183,1850.1,1850.0,1.0807]
[1746198343611,2.79894,1850.1,1850.0,2.8099]
[1746198344112,1.7183,1850.1,1850.0,2.8099]
[1746198344317,1.88235082,1850.2,1850.1,1.08064]
[1746198344512,2.96293082,1850.2,1850.1,1.08064]
[1746198344719,1.0807,1850.0,1849.9,4.28851]
[1746198345319,1.0807,1850.0,1849.9,3.2078]
[1746198345520,1.08086,1849.8,1849.7,1.08083]
[1746198346118,1.08086,1849.8,1849.7,2.81093]
[1746198347020,1.6367,1849.9,1849.7,2.81093]
[1746198347021,1.6367,1849.9,1849.8,1.08081]
[1746198348221,2.71746,1849.9,1849.8,1.08081]
[1746198348817,1.08081,1849.8,1849.7,2.81093]
[1746198349017,1.6204,1849.8,1849.7,2.81093]
[1746198349420,2.70121,1849.8,1849.7,2.81093]
[1746198349616,1.6204,1849.8,1849.7,2.81093]
[1746198349921,1.08081,1849.9,1849.8,1.08077]
[1746198350618,1.08081,1849.9,1849.7,1.7301]
[1746198350619,1.6204,1850.0,1849.7,1.7301]
[1746198350820,1.6204,1850.0,1849.9,1.08076]
[1746198351119,1.08074,1850.0,1849.9,1.0807]
[1746198351322,2.67259,1850.1,1850.0,1.0807]
[1746198351522,2.67259,1850.1,1850.0,4.2885]
[1746198351723,1.08081,1849.9,1849.8,1.08077]
[1746198352621,2.67263,1850.0,1849.9,1.08076]
[1746198353416,1.08076,1849.9,1849.8,2.68916]
[1746198353621,2.79226,1849.9,1849.8,2.68916]
[1746198354622,1.7115,1849.9,1849.8,2.68916]
[1746198354816,1.08069,1850.1,1850.0,1.08064]
[1746198355017,2.79214,1850.1,1850.0,1.08064]
[1746198355217,1.7115,1850.1,1850.0,4.28844]
[1746198355518,1.00695082,1850.2,1850.1,1.08064]
[1746198355825,2.79206,1850.3,1850.2,1.08058]
[1746198356217,1.08058,1850.2,1850.1,2.8314]
[1746198356417,0.9039,1850.4,1850.3,1.08052]
[1746198356617,3.62849,1850.4,1850.3,1.08052]
[1746198356814,2.548,1850.4,1850.3,1.08052]
[1746198357221,3.62846,1850.4,1850.3,1.08052]
[1746198357825,3.62846,1850.4,1850.3,2.74232]
[1746198358125,1.6441,1850.4,1850.3,2.74232]
[1746198358320,5.72935,1850.5,1850.4,1.08046]
[1746198358522,1.08046,1850.4,1850.3,2.74232]
[1746198358729,2.72456,1850.4,1850.3,1.08052]
[1746198359425,1.08052,1850.3,1850.2,3.67073]
[1746198359620,1.08052,1850.3,1850.0,3.2078]
[1746198359621,1.08064,1850.1,1850.0,4.28844]
[1746198360626,3.61653,1850.2,1850.1,1.08064]
[1746198361521,1.08081,1849.9,1849.8,1.08079]
[1746198362027,1.08081,1849.9,1849.8,1.08076]
[1746198362525,2.74915,1850.0,1849.9,1.08076]
[1746198363524,1.6684,1850.0,1849.9,1.08076]
[1746198363727,1.08068,1850.1,1850.0,1.0807]
[1746198364225,1.08068,1850.1,1849.9,1.6548]
[1746198364226,1.0807,1850.0,1849.9,2.73552]
[1746198364615,1.0808,1849.9,1849.8,1.08076]
[1746198364819,2.7394,1849.9,1849.8,4.28856]
[1746198365026,2.7394,1849.9,1849.8,1.08076]
[1746198365326,1.08081,1849.8,1849.7,1.08087]
[1746198365526,1.6111,1849.8,1849.7,1.08087]
[1746198365827,2.69191,1849.8,1849.7,2.69927]
[1746198366020,2.69191,1849.8,1849.7,1.08087]
[1746198366630,0.8808,1849.9,1849.8,1.08081]
[1746198366821,2.69185,1850.0,1849.9,1.08076]
[1746198367224,1.6111,1850.0,1849.9,1.08076]
[1746198367523,2.6918,1850.0,1849.9,2.69916]
[1746198367724,1.08076,1849.9,1849.8,4.28857]
[1746198367918,2.69186,1849.9,1849.8,5.90697]
[1746198368723,1.6111,1849.9,1849.8,5.90697]
[1746198368930,1.08073,1850.0,1849.9,1.08069]
[1746198369136,1.08073,1850.0,1849.9,2.68059]
[1746198370031,4.45229,1850.1,1849.7,1.08086]
[1746198370229,1.08081,1849.8,1849.7,1.08086]
[1746198371024,1.08081,1849.8,1849.7,2.68076]
[1746198371227,2.83136,1849.9,1849.8,1.08081]
[1746198371429,1.08076,1850.0,1849.9,1.08071]
[1746198371733,1.08076,1849.9,1849.8,5.88847]
[1746198371926,2.77396,1849.9,1849.8,5.88847]
[1746198372933,1.08074,1850.0,1849.9,1.08076]
[1746198373237,2.7739,1850.1,1850.0,1.0807]
[1746198373735,2.7739,1850.1,1850.0,2.6683]
[1746198374626,1.70698184,1850.5,1850.3,1.08049]
[1746198374832,2.7207,1850.8,1850.5,1.08033]
[1746198375033,2.6007,1850.7,1850.6,1.08035]
[1746198375340,1.08027,1850.8,1850.7,1.08025]
[1746198375729,1.08029,1850.7,1850.6,2.6945]
[1746198375937,2.80445,1850.8,1850.7,1.08029]
[1746198376240,1.7242,1850.8,1850.7,2.69449]
[1746198376436,2.80443,1850.8,1850.7,2.69449]
[1746198376635,2.80443,1850.8,1850.7,1.6142]
[1746198376932,1.08046,1850.5,1850.3,3.2078]
[1746198377127,1.08046,1850.5,1850.4,1.08045]
[1746198377332,1.08046,1850.4,1850.3,3.2078]
[1746198377538,3.68116,1850.4,1850.3,3.2078]
[1746198377940,1.08064,1850.1,1850.0,3.2078]
[1746198378146,1.08064,1850.1,1850.0,4.2885]
[1746198378340,1.08064,1850.1,1850.0,3.2078]
[1746198378738,1.92633,1850.2,1850.1,1.08064]
[1746198378943,2.75034,1850.3,1850.2,1.08058]
[1746198379138,2.75034,1850.3,1850.2,2.68048]
[1746198379941,2.75034,1850.3,1850.2,1.5999]
[1746198380136,1.08058,1850.2,1850.1,1.08063]
[1746198380334,1.08064,1850.1,1850.0,3.2078]
[1746198381242,1.94114,1850.1,1850.0,3.2078]
[1746198381742,1.94114,1850.1,1850.0,4.2885]
[1746198381935,1.94114,1850.1,1850.0,3.2078]
[1746198382742,1.08081,1849.8,1849.7,8.18069134]
[1746198382945,1.08081,1849.8,1849.7,1.08085]
[1746198383135,2.79876,1850.0,1849.9,1.08076]
[1746198383335,1.08076,1849.9,1849.8,4.28857]
[1746198383540,2.79876,1849.9,1849.8,1.08077]
[1746198384241,1.08074,1850.0,1849.9,1.08076]
[1746198384446,2.67464,1850.0,1849.9,2.75606]
[1746198384635,1.5939,1850.0,1849.9,2.75606]
[1746198385037,2.6746,1850.0,1849.9,2.75606]
[1746198385244,1.08076,1849.9,1849.8,4.28857]
[1746198385444,1.5939,1849.9,1849.8,4.28857]
[1746198385841,0.8605,1850.1,1850.0,1.0807]
[1746198386239,2.67452,1850.2,1850.1,1.08064]
[1746198386440,2.67448,1850.2,1850.1,2.75594]
[1746198386950,2.67448,1850.2,1850.1,1.6753]
[1746198387346,2.67448,1850.2,1850.1,2.75594]
[1746198387557,1.5939,1850.2,1850.1,43.55594]
[1746198388254,2.8806,1850.4,1850.3,1.08052]
[1746198388453,4.5831,1850.4,1850.3,1.08052]
[1746198388648,3.5026,1850.4,1850.3,1.08052]
[1746198388855,1.08046,1850.4,1850.3,1.08052]
[1746198389148,1.08052,1850.3,1850.2,2.75725]
[1746198389353,1.7025,1850.4,1850.3,1.08052]
[1746198389657,1.7025,1850.4,1850.3,2.75722]
[1746198390147,1.7025,1850.4,1850.3,6.45322]
[1746198390347,1.7025,1850.4,1850.3,9.66102]
[1746198390653,0.9332,1850.6,1850.5,1.08041]
[1746198390850,2.01355,1850.6,1850.5,1.08041]
[1746198391052,4.28813,1850.7,1850.6,1.08035]
[1746198391650,1.7082,1850.7,1850.6,1.08035]
[1746198392458,1.7082,1850.7,1850.6,2.70635]
[1746198392653,0.8536,1850.8,1850.7,1.08029]
[1746198392854,3.57827,1850.9,1850.8,1.08023]
[1746198394056,3.57827,1850.9,1850.8,2.75843]
[1746198394356,3.57827,1850.9,1850.8,1.08023]
[1746198394858,2.4981,1850.9,1850.8,1.08023]
[1746198395050,3.57827,1850.9,1850.8,2.75843]
[1746198395744,2.4981,1850.9,1850.8,2.75843]
[1746198395946,0.8876,1851.0,1850.9,1.08017]
[1746198396153,9.81744,1851.2,1851.1,1.08006]
[1746198396357,1.08011,1851.1,1851.0,1.08009]
[1746198397054,4.28784,1851.2,1851.1,1.08006]
[1746198397758,1.07999,1851.3,1851.2,1.08]
[1746198398057,1.7751,1851.4,1851.3,1.07994]
[1746198398655,2.85498,1851.4,1851.3,1.07994]
[1746198399466,1.7751,1851.4,1851.3,4.28774]
[1746198399659,2.85498,1851.4,1851.3,1.07994]
[1746198399850,1.07994,1851.3,1851.2,2.66715]
[1746198400251,1.7751,1851.4,1851.3,1.07994]
[1746198401057,1.07994,1851.3,1851.2,1.07994]
[1746198401257,2.85503,1851.4,1851.3,1.07994]
[1746198401757,2.85498,1851.4,1851.3,1.07994]
[1746198402661,1.07994,1851.3,1851.2,2.81985]
[1746198402858,2.85504,1851.4,1851.3,1.07994]
[1746198403160,1.07994,1851.3,1851.2,2.81986]
[1746198403460,1.07994,1851.3,1851.2,1.07996]
[1746198404360,1.08,1851.2,1851.1,4.28781]
[1746198404560,1.08,1851.2,1851.1,5.88401]
[1746198405656,1.08,1851.2,1851.1,2.67621]
[1746198405960,1.08006,1851.1,1851.0,4.77611]
[1746198406263,1.08006,1851.1,1851.0,1.08011]
[1746198407959,1.08011,1851.0,1850.9,6.03182]
[1746198408363,1.0801,1851.1,1851.0,1.08006]
[1746198408664,1.08011,1851.0,1850.9,6.0318]
[1746198408866,2.69986,1851.3,1850.9,6.0318]
[1746198408867,1.08011,1851.1,1851.0,1.08008]
[1746198409065,1.08011,1851.1,1851.0,2.70568]
[1746198409568,1.07999,1851.3,1851.2,1.07994]
[1746198410465,6.06284,1851.4,1851.3,1.07994]
[1746198410658,1.08,1851.3,1851.2,1.07998]
[1746198410967,1.08006,1851.2,1851.1,1.08002]
[1746198411765,1.08011,1851.0,1850.9,3.2078]
[1746198411962,1.08009,1851.1,1851.0,1.08004]
[1746198412465,1.08011,1851.0,1850.9,4.28792]
[1746198412667,2.72941,1851.0,1850.9,4.28792]
[1746198413268,2.72941,1851.0,1850.9,3.2078]
[1746198413569,2.72941,1851.0,1850.9,1.08017]
[1746198413762,1.08023,1850.9,1850.8,1.08019]
[1746198413964,4.35463,1850.9,1850.8,1.08019]
[1746198414166,1.08023,1850.8,1850.7,5.91775]
[1746198414363,2.75193,1850.8,1850.7,4.28805]
[1746198415270,2.70531,1850.9,1850.8,1.08023]
[1746198415574,1.08023,1850.8,1850.7,4.28804]
[1746198415772,2.75193,1850.8,1850.7,4.28804]
[1746198416765,1.08029,1850.7,1850.6,2.71]
[1746198416960,1.6717,1850.7,1850.6,2.71]
[1746198417161,2.75199,1850.7,1850.6,2.71]
[1746198417669,2.75199,1850.7,1850.6,1.6297]
[1746198417874,2.75199,1850.7,1850.6,2.71005]
[1746198419069,1.08035,1850.6,1850.5,4.28815]
[1746198419279,2.70235,1850.6,1850.5,4.28815]
[1746198419967,1.622,1850.6,1850.5,4.28815]
[1746198420169,1.08033,1850.7,1850.6,1.08035]
[1746198420469,1.08033,1850.7,1850.6,2.79435]
[1746198420770,1.6251,1850.9,1850.6,1.08028]
[1746198420975,1.6251,1850.9,1850.7,1.08023]
[1746198421173,4.30443,1850.9,1850.8,1.08023]
[1746198421475,4.91478184,1851.0,1850.9,1.08017]
[1746198421672,3.2078,1851.0,1850.9,1.08017]
[1746198421971,4.28796,1851.0,1850.9,1.08017]
[1746198422178,1.08003,1851.2,1851.1,1.08]
[1746198422473,1.08006,1851.1,1851.0,2.79407]
[1746198422673,1.08019,1851.0,1850.9,1.08013]
[1746198422877,1.08017,1850.9,1850.8,1.0802]
[1746198423277,1.08017,1850.9,1850.8,2.6892]
[1746198423670,2.70058,1850.8,1850.5,4.28817]
[1746198423981,1.08046,1850.4,1850.3,3.2078]
[1746198424172,1.08046,1850.4,1850.3,1.08052]
[1746198424776,1.08052,1850.3,1850.2,43.48954]
[1746198424977,2.76202,1850.3,1850.2,43.48954]
[1746198425179,2.76202,1850.3,1850.2,47.18554]
[1746198425376,1.6815,1850.3,1850.2,47.18554]
[1746198425579,1.70698184,1850.6,1850.5,1.08041]
[1746198425785,2.76169,1850.9,1850.8,1.08023]
[1746198426075,3.59259,1850.9,1850.8,1.08023]
[1746198426276,1.95424,1851.0,1850.9,1.08017]
[1746198426871,1.95424,1851.0,1850.9,2.83817]
[1746198427069,0.8741,1851.0,1850.9,2.83817]
[1746198427274,1.08007,1851.1,1850.9,4.9658]
[1746198427575,1.91093,1851.2,1851.1,1.08006]
[1746198428082,3.55073,1851.2,1851.1,1.08006]
[1746198428273,1.08006,1851.1,1851.0,2.83807]
[1746198428472,2.71986,1851.1,1851.0,2.83807]
[1746198429076,1.0802,1850.9,1850.8,1.08018]
[1746198429381,1.08023,1850.8,1850.7,3.2078]
[1746198429579,4.38893,1850.8,1850.7,3.2078]
[1746198430179,4.38893,1850.8,1850.7,4.28809]
[1746198432175,3.3087,1850.8,1850.7,4.28809]
[1746198432375,4.38893,1850.8,1850.7,4.28809]
[1746198432883,3.3087,1850.8,1850.7,4.28809]
[1746198433078,4.38893,1850.8,1850.7,4.28809]
[1746198433683,3.3087,1850.8,1850.7,4.28809]
[1746198433884,1.08016,1851.0,1850.9,1.08017]
[1746198434083,2.75196,1851.0,1850.9,1.08017]
[1746198434274,2.75191,1851.0,1850.9,1.08017]
[1746198434784,1.08023,1850.8,1850.7,4.28804]
[1746198434985,2.75203,1850.9,1850.8,1.08023]
[1746198435388,1.6718,1850.9,1850.8,1.08023]
[1746198435578,1.6718,1850.9,1850.8,2.74523]
[1746198435778,2.75197,1850.9,1850.8,2.74523]
[1746198438091,2.75197,1850.9,1850.8,1.08023]
[1746198440395,1.08023,1850.8,1850.7,5.95685]
[1746198440587,3.51063,1850.8,1850.7,4.28805]
[1746198442885,3.51063,1850.8,1850.7,3.2078]
[1746198443391,3.51063,1850.8,1850.7,4.28809]
[1746198443788,2.4304,1850.8,1850.7,4.28809]
[1746198444093,2.4304,1850.8,1850.7,7.98409]
[1746198444283,1.08016,1851.0,1850.7,7.98409]
[1746198444491,5.35879184,1851.1,1851.0,1.08011]
[1746198444690,3.65181,1851.1,1851.0,1.08011]
[1746198444890,3.65181,1851.1,1851.0,2.72311]
[1746198445086,3.65181,1851.1,1851.0,1.643]
[1746198445390,3.65181,1851.1,1850.9,1.08013]
[1746198445391,1.08011,1851.0,1850.9,1.08013]
[1746198445593,1.08023,1850.8,1850.7,4.28805]
[1746198445992,1.08023,1850.8,1850.7,3.2078]
[1746198446193,1.08023,1850.8,1850.7,4.28809]
[1746198446391,1.89843,1850.8,1850.7,4.28809]
[1746198446594,1.89843,1850.8,1850.7,3.2078]
[1746198446795,1.08035,1850.6,1850.5,7.09984134]
[1746198447389,2.79775,1850.6,1850.5,7.09984134]
[1746198449101,2.79775,1850.6,1850.5,1.08041]
[1746198449599,1.08041,1850.5,1850.4,4.28822]
[1746198449794,2.70961,1850.5,1850.4,4.28822]
[1746198450297,2.70961,1850.5,1850.4,1.08042]
[1746198451194,1.08046,1850.4,1850.3,2.72538]
[1746198451387,2.73026,1850.4,1850.3,2.72538]
[1746198451792,2.73026,1850.4,1850.3,1.08048]
[1746198452695,2.73026,1850.4,1850.3,2.68238]
[1746198452696,1.6498,1850.4,1850.3,2.68238]
[1746198452897,1.08043,1850.5,1850.4,1.08046]
[1746198453098,1.08043,1850.5,1850.4,2.68236]
[1746198453798,1.08043,1850.5,1850.4,1.6019]
[1746198454098,1.08043,1850.5,1850.3,1.08048]
[1746198454099,1.08046,1850.4,1850.3,1.08048]
[1746198454297,3.66206,1850.4,1850.3,1.08048]
[1746198455197,1.08052,1850.3,1850.2,5.97394]
[1746198455401,3.64272,1850.3,1850.2,5.97394]
[1746198457795,1.9404,1850.4,1850.3,1.08052]
[1746198458097,0.8599,1850.4,1850.3,2.70882]
[1746198458400,2.73035,1850.5,1850.4,1.08046]
[1746198458594,2.73035,1850.5,1850.4,5.91656]
[1746198458900,1.08046,1850.4,1850.3,1.08047]
[1746198459092,2.73036,1850.4,1850.3,1.08047]
[1746198459491,1.08052,1850.3,1850.2,4.8361]
[1746198459701,2.70157,1850.2,1850.0,3.2078]
[1746198459895,2.79984,1850.1,1850.0,4.28848]
[1746198461892,1.0807,1850.0,1849.9,1.08076]
[1746198462096,1.08076,1849.9,1849.8,4.28859]
[1746198462292,1.08076,1849.9,1849.8,3.2078]
[1746198462595,1.08087,1849.7,1849.6,8.18077134]
[1746198462800,2.70192,1849.9,1849.7,1.08087]
[1746198462801,4.52627,1849.8,1849.7,1.08087]
[1746198462993,3.4454,1849.8,1849.6,8.78054134]
[1746198463200,1.08087,1849.7,1849.6,9.86142134]
[1746198463700,2.67917,1849.7,1849.6,9.86142134]
[1746198464102,2.67917,1849.7,1849.6,7.09984134]
[1746198464303,2.67917,1849.7,1849.6,8.18077134]
[1746198464797,2.67917,1849.7,1849.6,9.77927134]
[1746198465198,1.5983,1849.7,1849.6,9.77927134]
[1746198465502,0.8789,1849.8,1849.7,1.08087]
[1746198465701,0.8789,1849.8,1849.7,2.67937]
[1746198466507,2.67908,1849.9,1849.8,1.08081]
[1746198466707,2.67908,1849.9,1849.8,2.71521]
[1746198467602,6.52192,1850.0,1849.8,1.6344]
[1746198467814,4.47495184,1850.1,1850.0,1.0807]
[1746198468104,1.08064,1850.1,1850.0,1.0807]
[1746198468305,1.08078,1849.9,1849.8,1.08075]
[1746198468502,2.76802,1850.0,1849.9,1.08076]
[1746198468708,1.6873,1850.0,1849.9,1.08076]
[1746198469007,1.08068,1850.1,1850.0,1.0807]
[1746198469207,1.08076,1850.0,1849.9,1.08073]
[1746198469399,2.74318,1850.1,1850.0,1.08065]
[1746198469805,1.0807,1850.0,1849.9,2.80673]
[1746198470006,2.7432,1850.0,1849.9,2.80673]
[1746198470202,2.7432,1850.0,1849.9,1.726]
[1746198470408,1.08081,1849.8,1849.7,4.28866]
[1746198470702,1.08081,1849.8,1849.7,4.28867]
[1746198471610,3.53931,1849.8,1849.7,3.2078]
[1746198472103,1.08099,1849.6,1849.5,1.08096]
[1746198472409,1.08099,1849.5,1849.4,2.82499]
[1746198472909,2.75157,1849.6,1849.5,1.08099]
[1746198473110,2.75157,1849.6,1849.5,2.82499]
[1746198473311,1.6706,1849.6,1849.5,2.82499]
[1746198473611,2.75153,1849.6,1849.5,2.82499]
[1746198474905,1.6706,1849.6,1849.5,2.82499]
[1746198475210,2.75153,1849.6,1849.5,2.82499]
[1746198476304,1.6706,1849.6,1849.5,2.82499]
[1746198477313,2.75153,1849.6,1849.5,2.82499]
[1746198479412,2.75153,1849.6,1849.5,1.08099]
[1746198479712,1.08099,1849.5,1849.4,1.08102]
[1746198479909,3.58759,1849.5,1849.4,1.08102]
[1746198480416,3.58763,1849.5,1849.4,1.08105]
[1746198481612,1.08105,1849.4,1849.3,2.81269]
[1746198481807,2.4761,1849.4,1849.3,2.81269]
[1746198482410,5.90988,1849.8,1849.5,1.08092]
[1746198482411,1.08097,1849.6,1849.5,1.08092]
[1746198482605,2.70697,1849.6,1849.5,1.08092]
[1746198482914,2.70697,1849.6,1849.5,2.71202]
[1746198483213,1.08099,1849.5,1849.4,1.08102]
[1746198483403,1.08108,1849.4,1849.3,1.08105]